bitfinex/quotes_SOLUSD_20250726
["timestamp","ask_amount","ask_price","bid_price","bid_amount"]
[1753544071316,0.03,187.32,187.31,10.30771358]
[1753544071522,0.59,187.32,187.31,0.06]
[1753544071813,5.49897033,187.32,187.31,0.06]
[1753544072484,0.59,187.32,187.31,0.06]
[1753544072806,5.49897033,187.32,187.31,0.06]
[1753544073508,0.03,187.32,187.31,0.06]
[1753544073686,0.59,187.32,187.31,0.06]
[1753544074116,0.03,187.32,187.31,0.06]
[1753544074811,0.59,187.32,187.31,0.06]
[1753544075000,0.03,187.32,187.31,0.06]
[1753544080325,0.03,187.32,187.31,0.77]
[1753544081014,0.03,187.32,187.31,0.06]
[1753544082793,0.03,187.32,187.31,0.77]
[1753544086802,0.03,187.32,187.31,0.06]
[1753544089607,0.59,187.32,187.31,0.06]
[1753544089922,0.03,187.32,187.31,5.67897033]
[1753544092010,0.03,187.32,187.31,11.01771358]
[1753544095817,0.03,187.32,187.31,98.41771358]
[1753544096626,0.03,187.36,187.31,111.76457172]
[1753544096926,0.03,187.36,187.35,4.90897033]
[1753544097305,0.03,187.36,187.35,5.56897033]
[1753544098226,0.03,187.36,187.35,10.90657374]
[1753544099129,0.59,187.36,187.32,4.90897033]
[1753544099432,5.49897033,187.36,187.31,4.96897033]
[1753544099605,4.93897033,187.36,187.31,4.96897033]
[1753544099932,0.56,187.35,187.31,4.96897033]
[1753544100226,0.03,187.36,187.32,10.90738684]
[1753544100432,0.03,187.36,187.32,10.24738684]
[1753544100622,0.59,187.36,187.32,10.24738684]
[1753544100820,0.59,187.36,187.32,10.90738684]
[1753544101221,0.56,187.35,187.31,10.30763486]
[1753544101427,0.03,187.36,187.32,4.90897033]
[1753544101630,0.03,187.36,187.32,5.56897033]
[1753544102629,0.59,187.36,187.32,10.90738298]
[1753544103628,0.03,187.36,187.32,10.90738298]
[1753544104533,0.03,187.36,187.33,0.66]
[1753544105115,0.03,187.36,187.33,5.56897033]
[1753544105434,0.03,187.36,187.35,4.90897033]
[1753544105947,0.03,187.36,187.35,5.56897033]
[1753544106614,0.03,187.36,187.35,10.90657374]
[1753544112728,0.03,187.36,187.35,12.49797374]
[1753544112729,1e-08,187.36,187.35,12.49797374]
[1753544115019,1e-08,187.36,187.35,49.77797374]
[1753544115737,1e-08,187.37,187.36,42.78468397]
[1753544115932,0.03,187.4,187.36,42.78468397]
[1753544115933,0.03,187.4,187.36,47.6936543]
[1753544116118,0.03,187.4,187.39,15.15440471]
[1753544116314,0.03,187.4,187.39,52.43440471]
[1753544116646,0.03,187.4,187.39,53.09440471]
[1753544116846,0.03,187.4,187.39,48.18543438]
[1753544119753,0.03,187.4,187.39,47.52543438]
[1753544120050,0.03,187.4,187.39,48.18543438]
[1753544121853,0.03,187.4,187.39,10.90543438]
[1753544122146,0.03,187.4,187.39,48.18543438]
[1753544123034,0.03,187.4,187.39,10.90543438]
[1753544123434,0.03,187.4,187.39,48.16543438]
[1753544125444,0.03,187.4,187.39,10.24543438]
[1753544125646,0.03,187.4,187.39,47.50543438]
[1753544125958,0.03,187.4,187.39,48.20543438]
[1753544138285,0.03,187.4,187.39,53.64805111]
[1753544138575,0.03,187.4,187.39,48.73908078]
[1753544142578,1e-08,187.4,187.39,53.64805111]
[1753544143074,1e-08,187.4,187.39,48.73908078]
[1753544143679,1e-08,187.4,187.39,141.04805111]
[1753544143884,1e-08,187.4,187.39,140.51440471]
[1753544144377,1e-08,187.41,187.39,140.51440471]
[1753544144579,1e-08,187.41,187.4,26.88694777]
[1753544144891,1e-08,187.41,187.4,114.98694777]
[1753544145964,1e-08,187.41,187.4,93.00897033]
[1753544146460,1e-08,187.41,187.4,124.34514962]
[1753544153998,1e-08,187.41,187.4,123.64514962]
[1753544154201,1e-08,187.41,187.4,134.88514962]
[1753544154992,0.56000001,187.41,187.4,134.88514962]
[1753544155295,0.56000001,187.41,187.4,42.57617929]
[1753544158819,1e-08,187.41,187.4,48.20514962]
[1753544160700,1.10730001,187.47,187.4,48.20514962]
[1753544161024,1.10730001,187.47,187.42,4.90897033]
[1753544161197,1.10730001,187.47,187.42,37.24]
[1753544161394,1.10730001,187.47,187.42,37.96]
[1753544161809,1.10730001,187.47,187.43,0.72]
[1753544162629,1.10730001,187.47,187.43,5.33532518]
[1753544163122,4.90897033,187.44,187.38,5.33674885]
[1753544163311,4.90897033,187.44,187.39,37.24]
[1753544163511,32.44159478,187.47,187.39,37.24]
[1753544163512,4.90897033,187.45,187.39,37.24]
[1753544164198,32.44159478,187.47,187.4,5.33617929]
[1753544164199,4.90897033,187.44,187.4,5.33617929]
[1753544164402,4.90897033,187.43,187.39,5.33640944]
[1753544164616,4.90897033,187.42,187.38,5.33671543]
[1753544164818,4.90897033,187.41,187.37,0.06]
[1753544165705,4.90897033,187.4,187.37,5.3970178]
[1753544166325,4.90897033,187.38,187.37,0.06]
[1753544166929,1.5684,187.41,187.37,0.06]
[1753544167120,4.90897033,187.38,187.37,0.06]
[1753544168132,1.5684,187.41,187.37,0.06]
[1753544168422,1.5684,187.41,187.37,0.78]
[1753544169445,6.47737033,187.41,187.37,0.06]
[1753544169813,6.47737033,187.41,187.37,0.78]
[1753544170710,4.90897033,187.44,187.38,5.62897033]
[1753544171404,4.90897033,187.44,187.39,0.72]
[1753544172031,4.90897033,187.43,187.38,5.33666883]
[1753544174329,4.90897033,187.43,187.38,6.05666883]
[1753544176438,4.90897033,187.43,187.39,6.05640205]
[1753544179545,4.90897033,187.42,187.38,5.33671938]
[1753544179834,4.90897033,187.4,187.37,0.06]
[1753544180043,31.33540753,187.43,187.37,0.06]
[1753544180044,4.90897033,187.38,187.37,0.06]
[1753544180230,4.90897033,187.42,187.38,0.72]
[1753544180436,4.90897033,187.42,187.37,5.39703367]
[1753544180437,42.14897033,187.43,187.39,0.72]
[1753544184425,4.90897033,187.41,187.37,0.06]
[1753544185038,4.90897033,187.39,187.37,0.06]
[1753544185246,4.90897033,187.38,187.37,0.06]
[1753544190932,42.14897033,187.39,187.37,0.73]
[1753544191468,26.0,187.4,187.37,0.73]
[1753544191626,63.24,187.4,187.37,0.73]
[1753544192044,63.24,187.4,187.38,0.67]
[1753544192351,68.14897033,187.4,187.37,0.06]
[1753544193133,4.90897033,187.39,187.37,0.06]
[1753544194349,4.90897033,187.39,187.37,0.73]
[1753544195149,42.14897033,187.4,187.37,0.73]
[1753544196678,42.14897033,187.4,187.38,0.67]
[1753544197449,4.90897033,187.4,187.38,0.67]
[1753544197653,42.14897033,187.4,187.38,0.67]
[1753544198653,42.14897033,187.4,187.37,0.06]
[1753544199559,42.14897033,187.4,187.37,0.73]
[1753544199856,37.24,187.39,187.37,0.73]
[1753544202134,37.24,187.39,187.37,0.06]
[1753544202770,21.6936543,187.38,187.37,0.06]
[1753544202975,25.67768505,187.38,187.37,0.06]
[1753544203433,31.0144339,187.38,187.37,0.06]
[1753544203635,27.03040315,187.38,187.37,0.06]
[1753544203855,4.90897033,187.38,187.37,0.06]
[1753544204034,68.16897033,187.38,187.37,0.06]
[1753544205542,73.50571918,187.38,187.37,0.06]
[1753544205752,90.29040315,187.38,187.37,0.06]
[1753544206548,94.27395042,187.38,187.37,0.06]
[1753544208370,84.9536543,187.38,187.37,0.06]
[1753544208663,68.16897033,187.38,187.37,0.06]
[1753544211766,4.90897033,187.4,187.37,0.73]
[1753544211974,37.26,187.39,187.37,0.73]
[1753544212343,42.16897033,187.39,187.37,0.06]
[1753544212762,4.90897033,187.38,187.37,0.06]
[1753544212944,21.6936543,187.38,187.37,0.06]
[1753544214671,27.03040315,187.38,187.37,0.06]
[1753544216368,21.6936543,187.38,187.37,0.06]
[1753544216580,26.0,187.38,187.37,0.75]
[1753544216747,37.28,187.38,187.37,0.75]
[1753544217154,16.78468397,187.41,187.37,0.75]
[1753544217462,37.28,187.4,187.37,0.75]
[1753544218173,37.28,187.4,187.38,0.69]
[1753544218476,37.28,187.4,187.39,0.69]
[1753544220381,6.13598193,187.5,187.39,10.93543438]
[1753544220577,20.76993718,187.49,187.44,4.90897033]
[1753544220774,37.3,187.46,187.44,4.90897033]
[1753544220963,37.3,187.46,187.44,0.69]
[1753544221971,37.3,187.46,187.45,0.69]
[1753544222781,37.3,187.46,187.43,5.59897033]
[1753544223073,37.3,187.46,187.44,0.69]
[1753544223446,37.3,187.46,187.43,4.90897033]
[1753544223650,37.3,187.46,187.45,0.69]
[1753544224166,37.3,187.46,187.45,5.59897033]
[1753544224368,37.3,187.46,187.45,10.93372626]
[1753544224565,37.33,187.48,187.45,10.93372626]
[1753544224875,37.33,187.48,187.46,5.59897033]
[1753544225678,37.33,187.48,187.44,0.69]
[1753544226182,37.33,187.48,187.45,0.69]
[1753544226982,37.3,187.46,187.45,0.69]
[1753544227482,37.3,187.46,187.43,0.69]
[1753544227679,37.3,187.46,187.44,0.69]
[1753544230486,37.3,187.46,187.45,0.69]
[1753544238784,37.29,187.48,187.45,6.02473194]
[1753544239290,37.29,187.48,187.46,0.69]
[1753544239868,37.29,187.48,187.46,5.59897033]
[1753544240065,0.03,187.48,187.46,5.59897033]
[1753544241875,0.03,187.48,187.46,0.69]
[1753544243090,0.03,187.48,187.46,6.02447135]
[1753544243283,0.03,187.48,187.46,10.93344168]
[1753544255399,0.03,187.48,187.46,5.59897033]
[1753544256692,0.03,187.48,187.46,0.69]
[1753544257911,0.03,187.48,187.46,5.59897033]
[1753544258485,0.03,187.48,187.44,0.06]
[1753544258684,0.03,187.48,187.44,0.78]
[1753544259796,0.03,187.48,187.45,0.72]
[1753544260303,0.03,187.48,187.46,0.72]
[1753544260704,0.03,187.48,187.44,4.96897033]
[1753544261010,0.03,187.48,187.45,0.72]
[1753544261792,0.03,187.48,187.44,0.06]
[1753544262115,4.93897033,187.48,187.44,0.06]
[1753544262292,4.93897033,187.48,187.45,0.72]
[1753544262293,0.03,187.48,187.45,0.72]
[1753544263704,0.03,187.48,187.46,0.06]
[1753544264318,4.02288098,187.48,187.46,0.06]
[1753544265523,0.03,187.48,187.46,0.06]
[1753544265699,4.02304956,187.48,187.46,0.06]
[1753544267314,37.25,187.47,187.46,0.06]
[1753544268213,41.24324596,187.47,187.46,0.06]
[1753544270011,71.6674843,187.47,187.46,0.06]
[1753544270199,71.66631485,187.47,187.46,0.06]
[1753544272815,73.43064526,187.47,187.46,0.06]
[1753544273409,73.4269681,187.47,187.46,0.06]
[1753544279718,69.43489159,187.47,187.46,0.06]
[1753544280025,73.41409512,187.47,187.46,0.06]
[1753544291834,73.41409512,187.47,187.46,0.77]
[1753544292035,73.41409512,187.47,187.46,0.06]
[1753544292740,71.65205627,187.47,187.46,0.06]
[1753544294047,71.64777704,187.47,187.46,0.06]
[1753544294843,42.78468397,187.45,187.44,1e-08]
[1753544295051,42.78468397,187.43,187.42,0.06]
[1753544295356,90.72279024,187.43,187.42,0.06]
[1753544295530,96.05811542,187.43,187.42,0.06]
[1753544296958,96.05674607,187.43,187.42,0.06]
[1753544302340,16.78468397,187.42,187.4,0.38]
[1753544302544,61.13226511,187.41,187.4,0.38]
[1753544302735,57.15871016,187.41,187.4,0.38]
[1753544302935,61.13180418,187.41,187.4,0.38]
[1753544303461,66.46769874,187.41,187.4,0.38]
[1753544304664,66.46769874,187.41,187.38,0.06]
[1753544304665,42.78468397,187.39,187.38,0.06]
[1753544304866,83.15871016,187.39,187.38,0.75]
[1753544306181,88.49517421,187.39,187.38,0.75]
[1753544308067,88.49517421,187.39,187.38,0.74]
[1753544308663,88.49517421,187.39,187.38,0.05]
[1753544308841,92.46847413,187.39,187.38,0.05]
[1753544310266,96.04519487,187.39,187.38,0.05]
[1753544311441,96.04519487,187.39,187.38,0.74]
[1753544313666,96.04519487,187.39,187.38,0.05]
[1753544314543,96.04780211,187.39,187.38,0.05]
[1753544314946,96.04780211,187.39,187.38,0.74]
[1753544315969,96.04780211,187.39,187.38,0.05]
[1753544321375,96.05002443,187.39,187.38,0.05]
[1753544327164,96.05002443,187.39,187.38,0.74]
[1753544328180,92.91599824,187.39,187.38,0.74]
[1753544328478,96.08002443,187.39,187.38,0.05]
[1753544328963,58.84002443,187.39,187.38,0.05]
[1753544329168,58.84002443,187.39,187.38,0.74]
[1753544329367,96.08002443,187.39,187.38,0.74]
[1753544330382,24.3701948,187.39,187.38,0.74]
[1753544330578,58.03125174,187.39,187.38,0.74]
[1753544330775,54.05468397,187.39,187.38,0.74]
[1753544331562,0.03,187.39,187.38,5.47662619]
[1753544331880,37.24,187.39,187.38,10.81337504]
[1753544332090,36.52,187.39,187.38,5.47662619]
[1753544333964,42.78468397,187.43,187.38,5.47662619]
[1753544334269,42.78468397,187.43,187.39,3.79402619]
[1753544334270,37.22,187.42,187.39,3.79402619]
[1753544334461,37.22,187.42,187.4,0.66]
[1753544336881,37.22,187.42,187.41,6.0798]
[1753544337380,37.22,187.42,187.41,6.7398]
[1753544339466,37.22,187.42,187.41,9.87382619]
[1753544340174,37.22,187.42,187.41,6.7398]
[1753544340498,37.22,187.42,187.41,0.66]
[1753544340974,42.55560986,187.42,187.41,0.66]
[1753544341799,42.55560986,187.42,187.38,4.78662619]
[1753544341968,3.13402619,187.41,187.38,2.3126]
[1753544342171,37.22,187.4,187.38,2.3126]
[1753544342888,40.35402619,187.4,187.38,2.3126]
[1753544344590,45.69041862,187.4,187.38,2.3126]
[1753544344772,42.55639243,187.4,187.38,2.3126]
[1753544345291,42.55639243,187.4,187.38,1.6526]
[1753544345480,37.22,187.4,187.39,0.66]
[1753544349871,37.25,187.4,187.39,0.66]
[1753544355498,0.03,187.4,187.39,5.55782079]
[1753544355696,0.03,187.4,187.39,10.23428484]
[1753544355874,0.03,187.4,187.39,10.89428484]
[1753544364818,0.03,187.4,187.39,9.12848468]
[1753544370818,0.03,187.4,187.39,5.99646405]
[1753544371114,0.03,187.4,187.39,9.12848468]
[1753544372021,0.03,187.4,187.39,9.18848468]
[1753544376707,0.03,187.4,187.39,21.7165672]
[1753544388332,0.03,187.4,187.39,16.38010315]
[1753544389114,0.03,187.44,187.42,26.0]
[1753544389319,0.72,187.44,187.43,40.31202063]
[1753544390237,0.03,187.44,187.43,40.31202063]
[1753544390533,0.03,187.44,187.43,45.64734581]
[1753544391034,0.03,187.44,187.43,46.31734581]
[1753544391235,0.03,187.44,187.43,45.64734581]
[1753544392738,0.03,187.44,187.43,46.31734581]
[1753544392920,0.03,187.44,187.43,45.64734581]
[1753544393818,0.03,187.44,187.43,46.31734581]
[1753544397950,0.03,187.46,187.43,46.85087832]
[1753544398121,0.03,187.46,187.45,3.13202063]
[1753544398318,0.03,187.46,187.45,40.31202063]
[1753544398545,0.03,187.46,187.45,41.01202063]
[1753544400239,0.03,187.46,187.45,46.34677656]
[1753544400719,0.03,187.46,187.45,8.46677656]
[1753544400926,0.03,187.46,187.45,9.16677656]
[1753544401457,0.03,187.46,187.45,46.32677656]
[1753544404061,0.03,187.46,187.45,133.72677656]
[1753544406771,0.03,187.46,187.45,133.02677656]
[1753544406949,0.03,187.46,187.45,46.32677656]
[1753544413663,0.03,187.48,187.45,46.32677656]
[1753544413866,0.03,187.48,187.47,3.13202063]
[1753544414040,0.03,187.48,187.47,40.29202063]
[1753544414241,0.03,187.48,187.47,40.99202063]
[1753544415271,0.03,187.48,187.47,46.32620743]
[1753544418862,0.03,187.48,187.47,133.72620743]
[1753544421761,0.03,187.48,187.47,95.86620743]
[1753544421963,0.71,187.48,187.47,95.86620743]
[1753544422260,0.71,187.48,187.47,133.00620743]
[1753544422860,0.03,187.48,187.47,133.00620743]
[1753544423241,0.03,187.48,187.47,129.8741868]
[1753544423446,0.71,187.48,187.47,133.00620743]
[1753544424081,0.03,187.48,187.47,133.00620743]
[1753544424776,0.03,187.48,187.47,45.60620743]
[1753544428267,0.03,187.48,187.47,46.29620743]
[1753544428856,0.03,187.48,187.47,45.60620743]
[1753544429463,0.03,187.48,187.47,46.29620743]
[1753544432054,0.03,187.48,187.47,45.60620743]
[1753544434168,0.03,187.48,187.47,46.29620743]
[1753544435067,0.03,187.48,187.47,45.60620743]
[1753544435805,0.69,187.48,187.47,3.13202063]
[1753544436103,0.69,187.48,187.47,40.27202063]
[1753544437003,0.69,187.48,187.47,40.33202063]
[1753544437173,0.69,187.48,187.47,45.66620743]
[1753544437995,0.69,187.48,187.47,40.33202063]
[1753544438598,0.69,187.48,187.47,0.06]
[1753544440399,0.19,187.48,187.47,0.06]
[1753544443899,8.65592291,187.48,187.47,0.06]
[1753544445106,5.52390228,187.48,187.47,0.06]
[1753544452224,5.33390228,187.48,187.47,0.06]
[1753544452507,5.56390228,187.48,187.47,0.06]
[1753544452984,29.13202063,187.49,187.47,0.06]
[1753544453188,26.0,187.49,187.47,0.06]
[1753544454005,31.33369419,187.49,187.47,0.06]
[1753544457920,31.94369419,187.49,187.47,0.06]
[1753544458090,37.14,187.48,187.47,0.06]
[1753544458406,0.03,187.5,187.48,0.68]
[1753544458599,0.03,187.49,187.48,0.68]
[1753544458805,0.03,187.49,187.48,3.81202063]
[1753544459392,0.03,187.49,187.48,9.14592291]
[1753544466132,0.03,187.49,187.47,0.06]
[1753544466295,0.03,187.49,187.47,3.19202063]
[1753544466495,0.03,187.49,187.47,3.87202063]
[1753544467318,0.03,187.49,187.47,0.06]
[1753544467922,0.03,187.49,187.47,0.74]
[1753544470418,0.03,187.49,187.47,0.06]
[1753544471128,0.03,187.49,187.47,0.74]
[1753544472929,0.03,187.49,187.48,0.68]
[1753544478140,0.03,187.49,187.48,11.43914165]
[1753544480238,0.03,187.49,187.48,11.49914165]
[1753544483918,0.03,187.49,187.48,98.89914165]
[1753544489046,0.03,187.49,187.48,98.21914165]
[1753544489441,0.03,187.49,187.48,98.92914165]
[1753544492748,0.03,187.49,187.48,97.16603602]
[1753544495751,0.03,187.49,187.48,97.45035916]
[1753544496831,0.03,187.49,187.48,99.20911347]
[1753544516777,0.03,187.49,187.48,97.45011199]
[1753544522474,0.03,187.5,187.49,0.28432314]
[1753544522675,0.03,187.52,187.51,26.28432314]
[1753544522859,0.03,187.52,187.51,67.74612438]
[1753544523378,0.03,187.53,187.51,67.74612438]
[1753544523379,1e-08,187.53,187.52,17.06900711]
[1753544523765,1e-08,187.53,187.52,20.91750346]
[1753544523972,1e-08,187.53,187.52,26.25026796]
[1753544524882,1e-08,187.53,187.52,45.82558399]
[1753544526092,1e-08,187.53,187.52,46.54558399]
[1753544528586,1e-08,187.53,187.52,133.94558399]
[1753544529094,1e-08,187.53,187.52,150.73026796]
[1753544531469,1e-08,187.53,187.52,96.86558399]
[1753544531674,1e-08,187.53,187.52,134.45886044]
[1753544531865,1e-08,187.53,187.52,133.92558399]
[1753544532369,1e-08,187.53,187.52,133.20558399]
[1753544533380,1e-08,187.53,187.52,159.20558399]
[1753544533592,1e-08,187.53,187.52,158.92126085]
[1753544533887,1e-08,187.53,187.52,155.7927645]
[1753544534182,1e-08,187.53,187.52,158.92126085]
[1753544534561,1e-08,187.53,187.52,129.7927645]
[1753544534761,0.61000001,187.53,187.52,37.06]
[1753544535177,0.61000001,187.53,187.51,5.33300604]
[1753544535382,0.61000001,187.53,187.51,42.39300604]
[1753544536594,0.61000001,187.53,187.5,37.06]
[1753544537094,0.61000001,187.53,187.49,37.06]
[1753544537095,5.49945944,187.53,187.49,37.06]
[1753544537289,0.61,187.52,187.49,37.06]
[1753544538183,0.61,187.52,187.49,42.39358807]
[1753544538384,1e-08,187.53,187.5,5.60945943]
[1753544540383,1e-08,187.53,187.51,5.3330489]
[1753544541093,1e-08,187.53,187.51,10.94250833]
[1753544541893,1e-08,187.53,187.52,0.72]
[1753544542397,1e-08,187.53,187.51,47.28250833]
[1753544542696,1e-08,187.53,187.51,48.00250833]
[1753544544306,1e-08,187.53,187.51,47.28250833]
[1753544544704,1e-08,187.53,187.51,47.95250833]
[1753544545398,1e-08,187.53,187.52,0.06]
[1753544546014,1e-08,187.53,187.52,6.0627645]
[1753544546214,1e-08,187.53,187.52,10.95222393]
[1753544546582,1e-08,187.53,187.52,11.48550038]
[1753544547023,1e-08,187.53,187.52,11.76982352]
[1753544547400,1e-08,187.53,187.52,99.16982352]
[1753544550710,1e-08,187.54,187.53,42.78468397]
[1753544550916,1e-08,187.54,187.53,172.8041434]
[1753544551304,1e-08,187.54,187.53,156.30378257]
[1753544552191,1e-08,187.54,187.53,161.6362627]
[1753544555112,1e-08,187.54,187.53,74.2362627]
[1753544557224,1e-08,187.54,187.53,73.95193956]
[1753544560914,1e-08,187.54,187.53,161.35193956]
[1753544563410,1e-08,187.54,187.53,160.68193956]
[1753544565222,1e-08,187.54,187.53,155.79248013]
[1753544565418,0.03,187.58,187.53,160.68193956]
[1753544565618,0.03,187.58,187.55,4.88945943]
[1753544565929,0.03,187.58,187.52,0.06]
[1753544565930,4.88945943,187.56,187.52,0.06]
[1753544568111,4.88945943,187.54,187.52,0.06]
[1753544568428,4.88945943,187.53,187.52,0.06]
[1753544568834,4.88945943,187.55,187.52,0.06]
[1753544569229,6.86621566,187.57,187.52,0.06]
[1753544569230,4.88945943,187.56,187.52,0.06]
[1753544569430,1.5348,187.57,187.54,4.88945943]
[1753544569628,1.5348,187.57,187.55,4.88945943]
[1753544569835,0.03,187.58,187.55,4.88945943]
[1753544570523,0.03,187.58,187.54,10.89162832]
[1753544571537,0.03,187.58,187.53,4.88945943]
[1753544571833,0.03,187.58,187.52,0.06]
[1753544571834,4.88945943,187.54,187.52,0.06]
[1753544574733,4.88945943,187.55,187.52,0.06]
[1753544576344,10.22130432,187.56,187.52,0.06]
[1753544576846,0.14,187.55,187.52,0.06]
[1753544577019,0.14,187.57,187.52,5.59945943]
[1753544577220,5.36128139,187.58,187.53,0.65]
[1753544577530,5.50128139,187.58,187.53,0.65]
[1753544578244,0.17,187.58,187.53,5.53945943]
[1753544578739,0.03,187.58,187.53,0.65]
[1753544578916,0.14,187.57,187.52,10.93215521]
[1753544579331,0.14,187.57,187.52,10.28215521]
[1753544579535,0.03,187.58,187.53,0.65]
[1753544579729,0.17,187.58,187.53,0.65]
[1753544580040,5.05945943,187.58,187.53,0.65]
[1753544580244,0.14,187.57,187.53,0.65]
[1753544580744,4.91945943,187.58,187.53,0.65]
[1753544580948,0.14,187.57,187.53,0.65]
[1753544582649,21.7041434,187.58,187.53,0.65]
[1753544582946,21.8441434,187.58,187.53,0.65]
[1753544583249,22.28585121,187.58,187.53,0.65]
[1753544583436,27.17531064,187.58,187.53,0.65]
[1753544584541,0.14,187.57,187.53,0.65]
[1753544585549,5.02945943,187.57,187.53,0.65]
[1753544585744,0.14,187.56,187.52,0.06]
[1753544586053,5.02945943,187.55,187.52,0.06]
[1753544587348,10.36139473,187.55,187.52,0.06]
[1753544588746,0.14,187.54,187.52,0.06]
[1753544588951,10.22139473,187.55,187.52,0.06]
[1753544590026,10.36139473,187.55,187.52,0.06]
[1753544590237,4.88945943,187.54,187.52,0.06]
[1753544590454,10.36170068,187.54,187.52,0.06]
[1753544590956,5.47224125,187.54,187.52,0.06]
[1753544591251,5.02945943,187.54,187.52,0.06]
[1753544591434,4.88945943,187.54,187.52,0.06]
[1753544592749,21.8141434,187.53,187.52,0.06]
[1753544594235,27.00662353,187.53,187.52,0.06]
[1753544596955,22.1171641,187.53,187.52,0.06]
[1753544597131,27.00662353,187.53,187.52,0.06]
[1753544602757,27.00635065,187.54,187.52,0.06]
[1753544605949,27.00635065,187.54,187.52,0.71]
[1753544606350,21.6741434,187.53,187.52,0.71]
[1753544606558,58.7341434,187.53,187.52,0.71]
[1753544608258,53.84468397,187.53,187.52,0.71]
[1753544611965,53.84468397,187.53,187.52,0.06]
[1753544612950,53.84468397,187.53,187.52,0.71]
[1753544613649,37.06,187.53,187.52,0.71]
[1753544617672,0.03,187.56,187.52,10.93272589]
[1753544617860,37.06,187.55,187.53,4.88996139]
[1753544618065,37.06,187.55,187.54,0.65]
[1753544618265,0.03,187.56,187.54,0.65]
[1753544618964,0.03,187.56,187.54,5.53996139]
[1753544619270,0.03,187.56,187.55,4.88996139]
[1753544619569,0.03,187.56,187.55,10.87187288]
[1753544619755,0.03,187.56,187.55,5.53996139]
[1753544625291,0.03,187.56,187.55,10.87187288]
[1753544626780,0.03,187.56,187.55,5.53996139]
[1753544631683,0.03,187.56,187.54,4.88996139]
[1753544631985,0.03,187.56,187.54,0.65]
[1753544632292,0.03,187.56,187.54,5.53996139]
[1753544632480,58.85464536,187.55,187.52,0.06]
[1753544632674,4.88996139,187.53,187.52,0.06]
[1753544633388,10.22244152,187.53,187.52,0.06]
[1753544634097,4.88996139,187.54,187.52,0.06]
[1753544635271,10.22222083,187.54,187.52,0.06]
[1753544639485,4.88996139,187.53,187.52,0.06]
[1753544640486,27.14712549,187.53,187.52,0.06]
[1753544640888,16.78468397,187.49,187.48,0.06]
[1753544641090,58.71464536,187.49,187.48,0.06]
[1753544643372,64.04826315,187.49,187.48,0.06]
[1753544648411,53.82468397,187.49,187.48,0.77]
[1753544648908,64.04826315,187.49,187.48,0.06]
[1753544649808,37.04,187.49,187.48,0.77]
[1753544650608,37.04,187.49,187.48,0.06]
[1753544651100,42.37361779,187.49,187.48,0.06]
[1753544651294,47.26357918,187.49,187.48,0.06]
[1753544651796,47.28357918,187.49,187.48,0.06]
[1753544652394,5.33361779,187.49,187.48,0.06]
[1753544652700,42.39361779,187.49,187.48,0.06]
[1753544652903,42.39361779,187.49,187.48,0.77]
[1753544653495,5.33361779,187.49,187.48,0.77]
[1753544653673,42.39361779,187.49,187.48,0.77]
[1753544654002,42.39361779,187.49,187.48,0.06]
[1753544654202,47.28357918,187.49,187.48,0.06]
[1753544654501,64.06826315,187.49,187.48,0.06]
[1753544655699,64.20826315,187.49,187.48,0.06]
[1753544661587,16.78468397,187.48,187.47,0.06]